Workbook

Sheet 100
A1: P(0-62/100)= | B1: =SUM(F5:F67) -> 0.05304558579
A4: k | B4: n | C4: C(k,n) | D4: p | E4: q | F4: P
A5: 0 | B5: 100 | C5: =FACT(B5)/(FACT(A5)*FACT(B5-A5)) -> 1 | D5: 0.7 | E5: =1-D5 -> 0.3 | F5: =C5*POWER(D5,A5)*POWER(E5,B5-A5) -> 5.153775207e-53
A6: 1 | B6: 100 | C6: =FACT(B6)/(FACT(A6)*FACT(B6-A6)) -> 100 | D6: 0.7 | E6: =1-D6 -> 0.3 | F6: =C6*POWER(D6,A6)*POWER(E6,B6-A6) -> 1.202547548e-50
A7: 2 | B7: 100 | C7: 4950 | D7: 0.7 | E7: 0.3 | F7: =C7*POWER(D7,A7)*POWER(E7,B7-A7) -> 1.388942418e-48
A8: 3 | B8: 100 | C8: 161700 | D8: 0.7 | E8: 0.3 | F8: 1.058682777e-46
A9: 4 | B9: 100 | C9: 3921225 | D9: 0.7 | E9: 0.3 | F9: 5.990380045e-45
A10: 5 | B10: 100 | C10: 75287520 | D10: 0.7 | E10: 0.3 | F10: 2.68369026e-43
A11: 6 | B11: 100 | C11: 1192052400 | D11: 0.7 | E11: 0.3 | F11: 9.914744572e-42
A12: 7 | B12: 100 | C12: 1.60075608e+10 | D12: 0.7 | E12: 0.3 | F12: 3.106619966e-40
A13: 8 | B13: 100 | C13: 1.860878943e+11 | D13: 0.7 | E13: 0.3 | F13: 8.426706657e-39
A14: 9 | B14: 100 | C14: 1902231808400 | D14: 0.7 | E14: 0.3 | F14: 2.009925588e-37
A15: 10 | B15: 100 | C15: 1.731030946e+13 | D15: 0.7 | E15: 0.3 | F15: 4.267741998e-36
A16: 11 | B16: 100 | C16: 141629804643600 | D16: 0.7 | E16: 0.3 | F16: 8.147507451e-35
A17: 12 | B17: 100 | C17: 1.050421051e+15 | D17: 0.7 | E17: 0.3 | F17: 1.409971428e-33
A18: 13 | B18: 100 | C18: 7110542499799204 | D18: 0.7 | E18: 0.3 | F18: 2.227031795e-32
A19: 14 | B19: 100 | C19: 4.418694268e+16 | D19: 0.7 | E19: 0.3 | F19: 3.229196102e-31
A20: 15 | B20: 100 | C20: 2.533384713e+17 | D20: 0.7 | E20: 0.3 | F20: 4.319946785e-30
A21: 16 | B21: 100 | C21: 1.345860629e+18 | D21: 0.7 | E21: 0.3 | F21: 5.354934036e-29
A22: 17 | B22: 100 | C22: 6.650134873e+18 | D22: 0.7 | E22: 0.3 | F22: 6.173923948e-28
A23: 18 | B23: 100 | C23: 3.06645108e+19 | D23: 0.7 | E23: 0.3 | F23: 6.64268484e-27
A24: 19 | B24: 100 | C24: 1.323415729e+20 | D24: 0.7 | E24: 0.3 | F24: 6.689300172e-26
A25: 20 | B25: 100 | C25: 5.359833704e+20 | D25: 0.7 | E25: 0.3 | F25: 6.321388663e-25
A26: 21 | B26: 100 | C26: 2.041841411e+21 | D26: 0.7 | E26: 0.3 | F26: 5.619012145e-24
A27: 22 | B27: 100 | C27: 7.332066885e+21 | D27: 0.7 | E27: 0.3 | F27: 4.708051085e-23
A28: 23 | B28: 100 | C28: 2.486527031e+22 | D28: 0.7 | E28: 0.3 | F28: 3.725501293e-22
A29: 24 | B29: 100 | C29: 7.977607557e+22 | D29: 0.7 | E29: 0.3 | F29: 2.788951663e-21
A30: 25 | B30: 100 | C30: 2.425192697e+23 | D30: 0.7 | E30: 0.3 | F30: 1.978296379e-20
A31: 26 | B31: 100 | C31: 6.995748165e+23 | D31: 0.7 | E31: 0.3 | F31: 1.33154564e-19
A32: 27 | B32: 100 | C32: 1.917353201e+24 | D32: 0.7 | E32: 0.3 | F32: 8.515316561e-19
A33: 28 | B33: 100 | C33: 4.998813702e+24 | D33: 0.7 | E33: 0.3 | F33: 5.180150908e-18
A34: 29 | B34: 100 | C34: 1.241084781e+25 | D34: 0.7 | E34: 0.3 | F34: 3.000915009e-17
A35: 30 | B35: 100 | C35: 2.937233982e+25 | D35: 0.7 | E35: 0.3 | F35: 1.657171955e-16
A36: 31 | B36: 100 | C36: 6.632463831e+25 | D36: 0.7 | E36: 0.3 | F36: 8.731336106e-16
A37: 32 | B37: 100 | C37: 1.430125013e+26 | D37: 0.7 | E37: 0.3 | F37: 4.392953479e-15
A38: 33 | B38: 100 | C38: 2.94692427e+26 | D38: 0.7 | E38: 0.3 | F38: 2.112167531e-14
A39: 34 | B39: 100 | C39: 5.807174297e+26 | D39: 0.7 | E39: 0.3 | F39: 9.711829138e-14
A40: 35 | B40: 100 | C40: 1.095067153e+27 | D40: 0.7 | E40: 0.3 | F40: 4.273204821e-13
A41: 36 | B41: 100 | C41: 1.977204582e+27 | D41: 0.7 | E41: 0.3 | F41: 1.800285364e-12
A42: 37 | B42: 100 | C42: 3.420029547e+27 | D42: 0.7 | E42: 0.3 | F42: 7.266016605e-12
A43: 38 | B43: 100 | C43: 5.670048987e+27 | D43: 0.7 | E43: 0.3 | F43: 2.810801161e-11
A44: 39 | B44: 100 | C44: 9.01392403e+27 | D44: 0.7 | E44: 0.3 | F44: 1.042639063e-10
A45: 40 | B45: 100 | C45: 1.374623415e+28 | D45: 0.7 | E45: 0.3 | F45: 3.710057332e-10
A46: 41 | B46: 100 | C46: 2.011644021e+28 | D46: 0.7 | E46: 0.3 | F46: 1.266848845e-09
A47: 42 | B47: 100 | C47: 2.825880887e+28 | D47: 0.7 | E47: 0.3 | F47: 4.152448993e-09
A48: 43 | B48: 100 | C48: 3.81165329e+28 | D48: 0.7 | E48: 0.3 | F48: 1.306894799e-08
A49: 44 | B49: 100 | C49: 4.93782358e+28 | D49: 0.7 | E49: 0.3 | F49: 3.950386552e-08
A50: 45 | B50: 100 | C50: 6.144847121e+28 | D50: 0.7 | E50: 0.3 | F50: 1.147075206e-07
A51: 46 | B51: 100 | C51: 7.347099819e+28 | D51: 0.7 | E51: 0.3 | F51: 3.200173583e-07
A52: 47 | B52: 100 | C52: 8.441348728e+28 | D52: 0.7 | E52: 0.3 | F52: 8.579188754e-07
A53: 48 | B53: 100 | C53: 9.320655888e+28 | D53: 0.7 | E53: 0.3 | F53: 2.210332658e-06
A54: 49 | B54: 100 | C54: 9.891308289e+28 | D54: 0.7 | E54: 0.3 | F54: 5.473204677e-06
A55: 50 | B55: 100 | C55: 1.008913445e+29 | D55: 0.7 | E55: 0.3 | F55: 1.302622713e-05
A56: 51 | B56: 100 | C56: 9.891308289e+28 | D56: 0.7 | E56: 0.3 | F56: 2.97985588e-05
A57: 52 | B57: 100 | C57: 9.320655888e+28 | D57: 0.7 | E57: 0.3 | F57: 6.551862607e-05
A58: 53 | B58: 100 | C58: 8.441348728e+28 | D58: 0.7 | E58: 0.3 | F58: 0.0001384544551
A59: 54 | B59: 100 | C59: 7.347099819e+28 | D59: 0.7 | E59: 0.3 | F59: 0.0002811821959
A60: 55 | B60: 100 | C60: 6.144847121e+28 | D60: 0.7 | E60: 0.3 | F60: 0.0005487313155
A61: 56 | B61: 100 | C61: 4.93782358e+28 | D61: 0.7 | E61: 0.3 | F61: 0.001028871217
A62: 57 | B62: 100 | C62: 3.81165329e+28 | D62: 0.7 | E62: 0.3 | F62: 0.001853171548
A63: 58 | B63: 100 | C63: 2.825880887e+28 | D63: 0.7 | E63: 0.3 | F63: 0.00320577377
A64: 59 | B64: 100 | C64: 2.011644021e+28 | D64: 0.7 | E64: 0.3 | F64: 0.005324844567
A65: 60 | B65: 100 | C65: 1.374623415e+28 | D65: 0.7 | E65: 0.3 | F65: 0.008490168837
A66: 61 | B66: 100 | C66: 9.01392403e+27 | D66: 0.7 | E66: 0.3 | F66: 0.01299042227
A67: 62 | B67: 100 | C67: 5.670048987e+27 | D67: 0.7 | E67: 0.3 | F67: 0.01906658752
A68: 63 | B68: 100 | C68: 3.420029547e+27 | D68: 0.7 | E68: 0.3 | F68: 0.02683445651
A69: 64 | B69: 100 | C69: 1.977204582e+27 | D69: 0.7 | E69: 0.3 | F69: 0.03619856373
A70: 65 | B70: 100 | C70: =FACT(B70)/(FACT(A70)*FACT(B70-A70)) -> 1.095067153e+27 | D70: 0.7 | E70: =1-D70 -> 0.3 | F70: =C70*POWER(D70,A70)*POWER(E70,B70-A70) -> 0.04677968235
A71: 66 | B71: 100 | C71: 5.807174297e+26 | D71: 0.7 | E71: 0.3 | F71: 0.05788395039
A72: 67 | B72: 100 | C72: 2.94692427e+26 | D72: 0.7 | E72: 0.3 | F72: 0.06853920493
A73: 68 | B73: 100 | C73: 1.430125013e+26 | D73: 0.7 | E73: 0.3 | F73: 0.07761057029
A74: 69 | B74: 100 | C74: 6.632463831e+25 | D74: 0.7 | E74: 0.3 | F74: 0.08398438525
A75: 70 | B75: 100 | C75: 2.937233982e+25 | D75: 0.7 | E75: 0.3 | F75: 0.08678386475
A76: 71 | B76: 100 | C76: =FACT(B76)/(FACT(A76)*FACT(B76-A76)) -> 1.241084781e+25 | D76: 0.7 | E76: 0.3 | F76: =C76*POWER(D76,A76)*POWER(E76,B76-A76) -> 0.0855615568
A77: 72 | B77: 100 | C77: 4.998813702e+24 | D77: 0.7 | E77: 0.3 | F77: 0.08041201866
A78: 73 | B78: 100 | C78: 1.917353201e+24 | D78: 0.7 | E78: 0.3 | F78: 0.07196692081
A79: 74 | B79: 100 | C79: 6.995748165e+23 | D79: 0.7 | E79: 0.3 | F79: 0.06126913528
A80: 75 | B80: 100 | C80: 2.425192697e+23 | D80: 0.7 | E80: 0.3 | F80: 0.04955992276
A81: 76 | B81: 100 | C81: 7.977607557e+22 | D81: 0.7 | E81: 0.3 | F81: 0.0380394144
A82: 77 | B82: 100 | C82: 2.486527031e+22 | D82: 0.7 | E82: 0.3 | F82: 0.02766502866
A83: 78 | B83: 100 | C83: 7.332066885e+21 | D83: 0.7 | E83: 0.3 | F83: 0.01903448553
A84: 79 | B84: 100 | C84: 2.041841411e+21 | D84: 0.7 | E84: 0.3 | F84: 0.01236839988
A85: 80 | B85: 100 | C85: 5.359833704e+20 | D85: 0.7 | E85: 0.3 | F85: 0.007575644926
A86: 81 | B86: 100 | C86: 1.323415729e+20 | D86: 0.7 | E86: 0.3 | F86: 0.004364569093
A87: 82 | B87: 100 | C87: 3.06645108e+19 | D87: 0.7 | E87: 0.3 | F87: 0.002359706054
A88: 83 | B88: 100 | C88: 6.650134873e+18 | D88: 0.7 | E88: 0.3 | F88: 0.001194068124
A89: 84 | B89: 100 | C89: 1.345860629e+18 | D89: 0.7 | E89: 0.3 | F89: 0.0005638655029
A90: 85 | B90: 100 | C90: 2.533384713e+17 | D90: 0.7 | E90: 0.3 | F90: 0.0002476585738
A91: 86 | B91: 100 | C91: 4.418694268e+16 | D91: 0.7 | E91: 0.3 | F91: 0.0001007912801
A92: 87 | B92: 100 | C92: 7110542499799204 | D92: 0.7 | E92: 0.3 | F92: 3.784500171e-05
A93: 88 | B93: 100 | C93: 1.050421051e+15 | D93: 0.7 | E93: 0.3 | F93: 1.304505741e-05
A94: 89 | B94: 100 | C94: 141629804643600 | D94: 0.7 | E94: 0.3 | F94: 4.104063004e-06
A95: 90 | B95: 100 | C95: 1.731030946e+13 | D95: 0.7 | E95: 0.3 | F95: 1.170417968e-06
A96: 91 | B96: 100 | C96: 1902231808400 | D96: 0.7 | E96: 0.3 | F96: 3.001071712e-07
A97: 92 | B97: 100 | C97: 1.860878943e+11 | D97: 0.7 | E97: 0.3 | F97: 6.850272387e-08
A98: 93 | B98: 100 | C98: 1.60075608e+10 | D98: 0.7 | E98: 0.3 | F98: 1.374965067e-08
A99: 94 | B99: 100 | C99: 1192052400 | D99: 0.7 | E99: 0.3 | F99: 2.389123698e-09
A100: 95 | B100: 100 | C100: 75287520 | D100: 0.7 | E100: 0.3 | F100: 3.520813871e-10
A101: 96 | B101: 100 | C101: 3921225 | D101: 0.7 | E101: 0.3 | F101: 4.278766857e-11
A102: 97 | B102: 100 | C102: =FACT(B102)/(FACT(A102)*FACT(B102-A102)) -> 161700 | D102: 0.7 | E102: 0.3 | F102: =C102*POWER(D102,A102)*POWER(E102,B102-A102) -> 4.117026529e-12
A103: 98 | B103: 100 | C103: 4950 | D103: 0.7 | E103: 0.3 | F103: 2.940733235e-13
A104: 99 | B104: 100 | C104: 100 | D104: 0.7 | E104: 0.3 | F104: 1.386204218e-14
A105: 100 | B105: 100 | C105: 1 | D105: 0.7 | E105: 0.3 | F105: 3.23447651e-16
F106: =SUM(F5:F105) -> 1

Sheet 60
A1: P(0-37/60)= | B1: =SUM(F5:F42) -> 0.1041039188
A4: k | B4: n | C4: C(k,n) | D4: p | E4: q | F4: P
A5: 0 | B5: 60 | C5: =FACT(B5)/(FACT(A5)*FACT(B5-A5)) -> 1 | D5: 0.7 | E5: =1-D5 -> 0.3 | F5: =C5*POWER(D5,A5)*POWER(E5,B5-A5) -> 4.239115828e-32
A6: 1 | B6: 60 | C6: =FACT(B6)/(FACT(A6)*FACT(B6-A6)) -> 60 | D6: 0.7 | E6: =1-D6 -> 0.3 | F6: =C6*POWER(D6,A6)*POWER(E6,B6-A6) -> 5.934762159e-30
A7: 2 | B7: 60 | C7: 1770 | D7: 0.7 | E7: 0.3 | F7: =C7*POWER(D7,A7)*POWER(E7,B7-A7) -> 4.085094619e-28
A8: 3 | B8: 60 | C8: 34220 | D8: 0.7 | E8: 0.3 | F8: 1.842831573e-26
A9: 4 | B9: 60 | C9: 487635 | D9: 0.7 | E9: 0.3 | F9: 6.127414979e-25
A10: 5 | B10: 60 | C10: 5461512 | D10: 0.7 | E10: 0.3 | F10: 1.601297781e-23
A11: 6 | B11: 60 | C11: 50063860 | D11: 0.7 | E11: 0.3 | F11: 3.424998032e-22
A12: 7 | B12: 60 | C12: 386206920 | D12: 0.7 | E12: 0.3 | F12: 6.164996458e-21
A13: 8 | B13: 60 | C13: 2558620845 | D13: 0.7 | E13: 0.3 | F13: 9.530057024e-20
A14: 9 | B14: 60 | C14: 1.478314266e+10 | D14: 0.7 | E14: 0.3 | F14: 1.284792873e-18
A15: 10 | B15: 60 | C15: 75394027566 | D15: 0.7 | E15: 0.3 | F15: 1.528903519e-17
A16: 11 | B16: 60 | C16: 3.427001253e+11 | D16: 0.7 | E16: 0.3 | F16: 1.621564338e-16
A17: 12 | B17: 60 | C17: 1.399358845e+12 | D17: 0.7 | E17: 0.3 | F17: 1.544990466e-15
A18: 13 | B18: 60 | C18: 5.166863428e+12 | D18: 0.7 | E18: 0.3 | F18: 1.33106871e-14
A19: 14 | B19: 60 | C19: 1.734589865e+13 | D19: 0.7 | E19: 0.3 | F19: 1.042670489e-13
A20: 15 | B20: 60 | C20: 5.319408919e+13 | D20: 0.7 | E20: 0.3 | F20: 7.460886611e-13
A21: 16 | B21: 60 | C21: 1.496083759e+14 | D21: 0.7 | E21: 0.3 | F21: 4.896206839e-12
A22: 17 | B22: 60 | C22: 3.872216787e+14 | D22: 0.7 | E22: 0.3 | F22: 2.956924914e-11
A23: 18 | B23: 60 | C23: 9.250295657e+14 | D23: 0.7 | E23: 0.3 | F23: 1.64821185e-10
A24: 19 | B24: 60 | C24: 2.044802198e+15 | D24: 0.7 | E24: 0.3 | F24: 8.501303229e-10
A25: 20 | B25: 60 | C25: 4.191844506e+15 | D25: 0.7 | E25: 0.3 | F25: 4.066456711e-09
A26: 21 | B26: 60 | C26: 7984465725343798 | D26: 0.7 | E26: 0.3 | F26: 1.807314094e-08
A27: 22 | B27: 60 | C27: 1.415428015e+16 | D27: 0.7 | E27: 0.3 | F27: 7.475708297e-08
A28: 23 | B28: 60 | C28: 2.338533242e+16 | D28: 0.7 | E28: 0.3 | F28: 2.88193972e-07
A29: 24 | B29: 60 | C29: 3.605238748e+16 | D29: 0.7 | E29: 0.3 | F29: 1.03669776e-06
A30: 25 | B30: 60 | C30: 5.191543797e+16 | D30: 0.7 | E30: 0.3 | F30: 3.483304475e-06
A31: 26 | B31: 60 | C31: 6.98861665e+16 | D31: 0.7 | E31: 0.3 | F31: 1.094114867e-05
A32: 27 | B32: 60 | C32: 8.800480226e+16 | D32: 0.7 | E32: 0.3 | F32: 3.214806647e-05
A33: 28 | B33: 60 | C33: 1.037199455e+17 | D33: 0.7 | E33: 0.3 | F33: 8.840718279e-05
A34: 29 | B34: 60 | C34: 1.144495951e+17 | D34: 0.7 | E34: 0.3 | F34: 0.0002276230913
A35: 30 | B35: 60 | C35: 1.182645816e+17 | D35: 0.7 | E35: 0.3 | F35: 0.0005488245646
A36: 31 | B36: 60 | C36: 1.144495951e+17 | D36: 0.7 | E36: 0.3 | F36: 0.001239281275
A37: 32 | B37: 60 | C37: 1.037199455e+17 | D37: 0.7 | E37: 0.3 | F37: 0.002620563529
A38: 33 | B38: 60 | C38: 8.800480226e+16 | D38: 0.7 | E38: 0.3 | F38: 0.005188186381
A39: 34 | B39: 60 | C39: 6.98861665e+16 | D39: 0.7 | E39: 0.3 | F39: 0.009613404177
A40: 35 | B40: 60 | C40: 5.191543797e+16 | D40: 0.7 | E40: 0.3 | F40: 0.01666323391
A41: 36 | B41: 60 | C41: 3.605238748e+16 | D41: 0.7 | E41: 0.3 | F41: 0.0270006105
A42: 37 | B42: 60 | C42: 2.338533242e+16 | D42: 0.7 | E42: 0.3 | F42: 0.04086578886
A43: 38 | B43: 60 | C43: 1.415428015e+16 | D43: 0.7 | E43: 0.3 | F43: 0.05771396497
A44: 39 | B44: 60 | C44: 7984465725343798 | D44: 0.7 | E44: 0.3 | F44: 0.07596538979
A45: 40 | B45: 60 | C45: 4.191844506e+15 | D45: 0.7 | E45: 0.3 | F45: 0.09305760249
A46: 41 | B46: 60 | C46: 2.044802198e+15 | D46: 0.7 | E46: 0.3 | F46: 0.1059192224
A47: 42 | B47: 60 | C47: 9.250295657e+14 | D47: 0.7 | E47: 0.3 | F47: 0.1118036236
A48: 43 | B48: 60 | C48: 3.872216787e+14 | D48: 0.7 | E48: 0.3 | F48: 0.1092035393
A49: 44 | B49: 60 | C49: 1.496083759e+14 | D49: 0.7 | E49: 0.3 | F49: 0.0984486453
A50: 45 | B50: 60 | C50: 5.319408919e+13 | D50: 0.7 | E50: 0.3 | F50: 0.08167591314
A51: 46 | B51: 60 | C51: 1.734589865e+13 | D51: 0.7 | E51: 0.3 | F51: 0.06214471652
A52: 47 | B52: 60 | C52: 5.166863428e+12 | D52: 0.7 | E52: 0.3 | F52: 0.04319278169
A53: 48 | B53: 60 | C53: 1.399358845e+12 | D53: 0.7 | E53: 0.3 | F53: 0.02729543843
A54: 49 | B54: 60 | C54: 3.427001253e+11 | D54: 0.7 | E54: 0.3 | F54: 0.01559739339
A55: 50 | B55: 60 | C55: 75394027566 | D55: 0.7 | E55: 0.3 | F55: 0.00800666194
A56: 51 | B56: 60 | C56: 1.478314266e+10 | D56: 0.7 | E56: 0.3 | F56: 0.003663178665
A57: 52 | B57: 60 | C57: 2558620845 | D57: 0.7 | E57: 0.3 | F57: 0.001479360615
A58: 53 | B58: 60 | C58: 386206920 | D58: 0.7 | E58: 0.3 | F58: 0.0005210326694
A59: 54 | B59: 60 | C59: 50063860 | D59: 0.7 | E59: 0.3 | F59: 0.0001575963012
A60: 55 | B60: 60 | C60: 5461512 | D60: 0.7 | E60: 0.3 | F60: 4.011542213e-05
A61: 56 | B61: 60 | C61: 487635 | D61: 0.7 | E61: 0.3 | F61: 8.357379611e-06
A62: 57 | B62: 60 | C62: 34220 | D62: 0.7 | E62: 0.3 | F62: 1.368459819e-06
A63: 58 | B63: 60 | C63: 1770 | D63: 0.7 | E63: 0.3 | F63: 1.651589437e-07
A64: 59 | B64: 60 | C64: 60 | D64: 0.7 | E64: 0.3 | F64: 1.306341928e-08
A65: 60 | B65: 60 | C65: 1 | D65: 0.7 | E65: 0.3 | F65: 5.080218607e-10
F66: =SUM(F5:F65) -> 1
